Workbook

Sheet Лист1
A1: Школа | C1: МБОУ СОШ № 36 г. Нижний Тагил | F1: Утвердил: | G1: должность | H1: Директор
A2: Типовое примерное меню приготавливаемых блюд | G2: фамилия | H2: Пашкова
A3: Возрастная категория | E3: 7-11 лет | G3: дата | H3: 12 | I3: 1 | J3: 2026
H4: день | I4: месяц | J4: год
A5: Неделя | B5: День недели | C5: Прием пищи | D5: Раздел меню | E5: Блюда | F5: Вес блюда, г | G5: Белки | H5: Жиры | I5: Углеводы | J5: Калорийность | K5: № рецептуры | L5: Цена
A6: 1 | B6: 1 | C6: Завтрак | D6: гор.блюдо | E6: Икра кабачковая пром. производства | F6: 30 | G6: 0.36 | H6: 4.2 | I6: 2.22 | J6: 29.1 | K6: 813 | L6: 12.91
D7: гор.блюдо | E7: Омлет запеченный или паровой | F7: 200 | G7: 14.6 | H7: 15 | I7: 5.13 | J7: 284.6 | K7: 891 | L7: 60.24
D8: сладкое | E8: Печенье детское | F8: 60 | G8: 4.5 | H8: 5 | I8: 44.6 | J8: 244.18 | K8: 1141 | L8: 13.76
D9: гор.напиток | E9: Чай с лимоном | F9: 200 | G9: 0.06 | H9: 0 | I9: 15.16 | J9: 59.9 | K9: 686 | L9: 15
D10: хлеб | E10: Батон | F10: 30 | G10: 2.25 | H10: 1 | I10: 15.42 | J10: 78.6 | K10: 693 | L10: 6
D13: итого | F13: =SUM(F6:F12) -> 520 | G13: =SUM(G6:G12) -> 21.77 | H13: 25.2 | I13: 82.53 | J13: 696.38 | L13: =SUM(L6:L12) -> 107.91
A14: =A6 -> 1 | B14: =B6 -> 1 | C14: Обед | D14: закуска
D15: 1 блюдо | E15: Суп с вермишелью | F15: 200 | G15: 1.94 | H15: 2 | I15: 13.95 | J15: 80.7 | K15: 1039 | L15: 21.3
D16: 2 блюдо | E16: Плов со свининой | F16: 200 | G16: 15.47 | H16: 24 | I16: 47.18 | J16: 450.8 | K16: 444,01 | L16: 84.51
D17: гарнир
D18: сладкое | E18: Компот из смеси сухофруктов | F18: 200 | G18: 0.46 | H18: 0 | I18: 27.49 | J18: 115.7 | K18: 928 | L18: 14
D19: хлеб | E19: Хлеб пшеничный | F19: 25 | G19: 2.03 | H19: 0 | I19: 12.2 | J19: 60.5 | K19: 894,01 | L19: 6
D20: хлеб | E20: Хлеб ржаной | F20: 25 | G20: 2.13 | H20: 1 | I20: 10.63 | J20: 64.8 | K20: 1147 | L20: 5.38
D21: фрукты | E21: Фрукт | F21: 100 | G21: 0.4 | H21: 0 | I21: 9.8 | J21: 47 | K21: 976,03 | L21: 19.89
D23: итого | F23: =SUM(F14:F22) -> 750 | G23: =SUM(G14:G22) -> 22.43 | H23: 27 | I23: 121.25 | J23: 819.5 | L23: =SUM(L14:L22) -> 151.08
A24: =A6 -> 1 | B24: =B6 -> 1 | C24: Итого за день: | F24: =F13+F23 -> 1270 | G24: =G13+G23 -> 44.2 | H24: 52.2 | I24: 203.78 | J24: 1515.88 | L24: =L13+L23 -> 258.99
A25: 1 | B25: 2 | C25: Завтрак | D25: гор.блюдо | E25: Каша пшенная молочная вязкая с маслом сливочным | F25: 200 | G25: 13.12 | H25: 10 | I25: 30.4 | J25: 259.1 | K25: 302 | L25: 44.68
D26: гор.напиток | E26: Чай ягодный | F26: 200 | G26: 0.1 | H26: 0 | I26: 12.97 | J26: 59.9 | K26: 971 | L26: 10
D27: сладкое | E27: Манник на кефире | F27: 60 | G27: 4.01 | H27: 5 | I27: 37 | J27: 207.1 | K27: 1182 | L27: 25.93
D28: хлеб | E28: Хлеб пшеничный | F28: 25 | G28: 2.03 | H28: 0 | I28: 12.2 | J28: 60.5 | K28: 894,01 | L28: 6
D29: хлеб
D30: фрукты | E30: Фрукт | F30: 100 | G30: 0.4 | H30: 0 | I30: 9.8 | J30: 47 | K30: 976,03 | L30: 21.3
D32: итого | F32: =SUM(F25:F31) -> 585 | G32: =SUM(G25:G31) -> 19.66 | H32: 15 | I32: 102.37 | J32: 633.6 | L32: 107.91
A33: =A25 -> 1 | B33: =B25 -> 2 | C33: Обед | D33: закуска
D34: 1 блюдо | E34: Щи из свежей капусты с картофелем со сметаной | F34: 200 | G34: 1.65 | H34: 5 | I34: 8.08 | J34: 84.3 | K34: 124 | L34: 21.3
D35: 2 блюдо | E35: Кнели куриные паровые | F35: 90 | G35: 16.01 | H35: 16 | I35: 15.5 | J35: 245.3 | K35: 1087 | L35: 76.91
D36: 2 блюдо | E36: Соус сметанный с томатом | F36: 20 | G36: 0.28 | H36: 1 | I36: 1.35 | J36: 15.8 | K36: 600,01 | L36: 2.26
D37: гарнир | E37: Пюре картофельное | F37: 150 | G37: 3.31 | H37: 6 | I37: 22.17 | J37: 155 | K37: 995 | L37: 25.23
D38: сладкое | E38: Кисель витаминизировнный | F38: 200 | G38: 0.05 | H38: 0 | I38: 23 | J38: 134 | K38: 1318 | L38: 14
D39: хлеб | E39: Хлеб пшеничный | F39: 25 | G39: 2.03 | H39: 0 | I39: 12.2 | J39: 60.5 | K39: 894,01 | L39: 6
D40: хлеб | E40: Хлеб ржаной | F40: 25 | G40: 2.13 | H40: 1 | I40: 10.63 | J40: 64.8 | K40: 1147 | L40: 5.38
D42: итого | F42: =SUM(F33:F41) -> 710 | G42: =SUM(G33:G41) -> 25.46 | H42: 29 | I42: 92.93 | J42: 759.7 | L42: 151.08
A43: =A25 -> 1 | B43: =B25 -> 2 | C43: Итого за день: | F43: =F32+F42 -> 1295 | G43: =G32+G42 -> 45.12 | H43: 44 | I43: 195.3 | J43: 1393.3 | L43: 258.99
A44: 1 | B44: 3 | C44: Завтрак | D44: гор.блюдо | E44: Макаронные изделия запеченные с сыром | F44: 200 | G44: 17.71 | H44: 20 | I44: 34.27 | J44: 291.01 | K44: 334 | L44: 73.15
D46: гор.напиток | E46: Какао с молоком | F46: 200 | G46: 3.87 | H46: 4 | I46: 12.3 | J46: 89.7 | K46: 919 | L46: 15
D47: сладкое | E47: Плюшка Московская с сахаром | F47: 75 | G47: 4.57 | H47: 2 | I47: 29.3 | J47: 238.9 | K47: 938,03 | L47: 8.38
D48: хлеб | E48: Хлеб пшеничный | F48: 25 | G48: 2.03 | H48: 0 | I48: 12.2 | J48: 60.5 | K48: 894,01 | L48: 6
D49: хлеб | E49: Хлеб ржаной | F49: 25 | G49: 2.13 | H49: 1 | I49: 12.13 | J49: 64.8 | K49: 1148 | L49: 5.38
D50: фрукты
D51: итого | F51: =SUM(F44:F50) -> 525 | G51: =SUM(G44:G50) -> 30.31 | H51: 27 | I51: 100.2 | J51: 744.91 | L51: 107.91
A52: =A44 -> 1 | B52: =B44 -> 3 | C52: Обед | D52: закуска
D53: 1 блюдо | E53: Рассольник ленинградский со сметаной | F53: 200 | G53: 2.12 | H53: 5 | I53: 15.02 | J53: 118.9 | K53: 1030 | L53: 21.3
D54: 2 блюдо | E54: Митболы | F54: 90 | G54: 12.59 | H54: 11 | I54: 2.09 | J54: 113.8 | K54: 1436,01 | L54: 68.4
D55: 2 блюдо | E55: Соус томатный | F55: 20 | G55: 0.12 | H55: 1 | I55: 1.16 | J55: 11.1 | K55: 1126 | L55: 2.26
D56: гарнир | E56: Каша гречневая рассыпчатая | F56: 150 | G56: 7.55 | H56: 6 | I56: 39.35 | J56: 240.8 | K56: 998 | L56: 17.73
D57: сладкое | E57: Напиток из плодов шиповника | F57: 200 | G57: 0.68 | H57: 0 | I57: 25.63 | J57: 120.6 | K57: 705 | L57: 14
D58: хлеб | E58: Хлеб пшеничный | F58: 25 | G58: 2.03 | H58: 0 | I58: 12.2 | J58: 60.5 | K58: 894,01 | L58: 6
D59: хлеб | E59: Хлеб ржаной | F59: 25 | G59: 2.13 | H59: 1 | I59: 10.63 | J59: 64.8 | K59: 1147 | L59: 5.38
D60: фрукты | E60: Фрукт | F60: 100 | G60: 0.4 | H60: 0 | I60: 9.8 | J60: 47 | K60: 976,03 | L60: 16.01
D61: итого | F61: =SUM(F52:F60) -> 810 | G61: =SUM(G52:G60) -> 27.62 | H61: 24 | I61: 115.88 | J61: 777.5 | L61: 151.08
A62: =A44 -> 1 | B62: =B44 -> 3 | C62: Итого за день: | F62: =F51+F61 -> 1335 | G62: =G51+G61 -> 57.93 | H62: 51 | I62: 216.08 | J62: 1522.41 | L62: 258.99
A63: 1 | B63: 4 | C63: Завтрак | D63: гор.блюдо | E63: Каша ячневая молочная вязкая с маслом сливочным | F63: 200 | G63: 4.48 | H63: 8 | I63: 25.08 | J63: 198.4 | K63: 842 | L63: 52.03
D64: гор.напиток | E64: Чай ягодный | F64: 200 | G64: 0.1 | H64: 0 | I64: 12.97 | J64: 59.9 | K64: 971 | L64: 10
D65: хлеб | E65: Хлеб пшеничный | F65: 25 | G65: 2.03 | H65: 0 | I65: 12.2 | J65: 60.5 | K65: 894,01 | L65: 6
D66: хлеб
D67: сладкое | E67: Зефир | F67: 54 | G67: 0.43 | H67: 0 | I67: 43.09 | J67: 176 | K67: 1466 | L67: 26.12
D68: фрукты | E68: Фрукт | F68: 100 | G68: 0.4 | H68: 0 | I68: 9.8 | J68: 47 | K68: 976,03 | L68: 13.76
D70: итого | F70: =SUM(F63:F69) -> 579 | G70: =SUM(G63:G69) -> 7.44 | H70: 8 | I70: 103.14 | J70: 541.8 | L70: 107.91
A71: =A63 -> 1 | B71: =B63 -> 4 | C71: Обед | D71: закуска
D72: 1 блюдо | E72: Борщ с капустой картофелем и сметаной | F72: 200 | G72: 3.03 | H72: 6 | I72: 13.87 | J72: 118 | K72: 1021 | L72: 21.3
D73: 2 блюдо | E73: Рагу из птицы с соусом красным | F73: 220 | G73: 15.75 | H73: 15 | I73: 18.98 | J73: 344.3 | K73: 1072 | L73: 83.1
D74: гарнир
D75: сладкое | E75: Компот из свежих яблок | F75: 200 | G75: 0.16 | H75: 0 | I75: 23.88 | J75: 99.1 | K75: 912 | L75: 14
D76: хлеб | E76: Хлеб пшеничный | F76: 25 | G76: 2.03 | H76: 0 | I76: 12.2 | J76: 60.5 | K76: 894,01 | L76: 6
D77: хлеб | E77: Хлеб ржаной | F77: 25 | G77: 2.13 | H77: 1 | I77: 10.63 | J77: 64.8 | K77: 1147 | L77: 5.38
D78: сладкое | E78: Манник на кефире | F78: 60 | G78: 4.01 | H78: 5 | I78: 37 | J78: 207.1 | K78: 1182,03 | L78: 21.3
D80: итого | F80: =SUM(F71:F79) -> 730 | G80: =SUM(G71:G79) -> 27.11 | H80: 27 | I80: 116.56 | J80: 893.8 | L80: 151.08
A81: =A63 -> 1 | B81: =B63 -> 4 | C81: Итого за день: | F81: =F70+F80 -> 1309 | G81: =G70+G80 -> 34.55 | H81: 35 | I81: 219.7 | J81: 1435.6 | L81: 258.99
A82: 1 | B82: 5 | C82: Завтрак | D82: хлеб | E82: Бутерброд с маслом сливочным | F82: 40 | G82: 2.5 | H82: 8 | I82: 16.55 | J82: 151.1 | K82: 808 | L82: 11.92
D83: гор.блюдо | E83: Плов со свининой | F83: 250 | G83: 15.59 | H83: 12 | I83: 38.97 | J83: 297.6 | K83: 444,01 | L83: 79.99
D84: гор.напиток | E84: Чай с сахаром | F84: 200 | G84: 0 | H84: 0 | I84: 14.97 | J84: 59.9 | K84: 828 | L84: 10
D85: хлеб | E85: Хлеб пшеничный | F85: 25 | G85: 2.03 | H85: 0 | I85: 12.2 | J85: 60.5 | K85: 894,01 | L85: 6
D86: фрукты
D89: итого | F89: =SUM(F82:F88) -> 515 | G89: =SUM(G82:G88) -> 20.12 | H89: 20 | I89: 82.69 | J89: 569.1 | L89: 107.91
A90: =A82 -> 1 | B90: =B82 -> 5 | C90: Обед | D90: закуска
D91: 1 блюдо | E91: Суп картофельный с бобовыми | F91: 200 | G91: 4.7 | H91: 4 | I91: 17.18 | J91: 125.1 | K91: 139 | L91: 20.88
D92: 1 блюдо | E92: Гренки из пшеничного хлеба | F92: 15 | G92: 1.94 | H92: 0 | I92: 11.71 | J92: 60 | K92: 943 | L92: 2.48
D93: 2 блюдо | E93: Птица запеченная | F93: 90 | G93: 11.29 | H93: 6 | I93: 1.88 | J93: 161.8 | K93: 1237 | L93: 67.18
D94: гарнир | E94: Макаронные изделия отварные с маслом | F94: 150 | G94: 3.92 | H94: 5 | I94: 35.96 | J94: 220.4 | K94: 516 | L94: 15.27
D95: сладкое | E95: Напиток Ягодка | F95: 200 | G95: 0.12 | H95: 0 | I95: 14.85 | J95: 61.1 | K95: 930 | L95: 14
D96: хлеб | E96: Хлеб пшеничный | F96: 25 | G96: 2.68 | H96: 1 | I96: 10.88 | J96: 68.5 | K96: 897 | L96: 6
D97: хлеб | E97: Хлеб ржаной. | F97: 25 | G97: 2.13 | H97: 1 | I97: 10.63 | J97: 64.8 | K97: 1147 | L97: 5.38
D98: фрукты | E98: Фрукт | F98: 100 | G98: 0.4 | H98: 0 | I98: 9.8 | J98: 47 | K98: 976,03 | L98: 19.89
D99: итого | F99: =SUM(F90:F98) -> 805 | G99: =SUM(G90:G98) -> 27.18 | H99: 17 | I99: 112.89 | J99: 808.7 | L99: 151.08
A100: =A82 -> 1 | B100: =B82 -> 5 | C100: Итого за день: | F100: =F89+F99 -> 1320 | G100: =G89+G99 -> 47.3 | H100: 37 | I100: 195.58 | J100: 1377.8 | L100: 258.99
A101: 1 | B101: 6 | C101: Завтрак | D101: гор.блюдо | E101: Каша рисовая молочная жидкая с маслом сливочным | F101: 200 | G101: 5.1 | H101: 9 | I101: 24.87 | J101: 205.6 | K101: 235,05 | L101: 36.63
D102: сладкое | E102: Язычок слоеный | F102: 70 | G102: 5.14 | H102: 0 | I102: 42.1 | J102: 275.1 | K102: 956,01 | L102: 28.98
D103: гор.напиток | E103: Чай с лимоном | F103: 200 | G103: 0.06 | H103: 0 | I103: 15.16 | J103: 59.9 | K103: 686 | L103: 15
D104: хлеб | E104: Хлеб пшеничный | F104: 25 | G104: 2.03 | H104: 0 | I104: 12.2 | J104: 60.5 | K104: 894,01 | L104: 6
D105: хлеб
D106: фрукты | E106: Фрукт | F106: 100 | G106: 0.4 | H106: 0 | I106: 9.8 | J106: 47 | K106: 976,03 | L106: 21.3
D108: итого | F108: =SUM(F101:F107) -> 595 | G108: =SUM(G101:G107) -> 12.73 | H108: 9 | I108: 104.13 | J108: 648.1 | L108: =SUM(L101:L107) -> 107.91
A109: =A101 -> 1 | B109: =B101 -> 6 | C109: Обед | D109: закуска
D110: 1 блюдо | E110: Суп кудрявый с пшеном и яйцом | F110: 200 | G110: 3.35 | H110: 6 | I110: 16.54 | J110: 138.3 | K110: 1152 | L110: 16.03
D111: 2 блюдо | E111: Рыба тушенная с овощами | F111: 90 | G111: 11.37 | H111: 8 | I111: 4.3 | J111: 138.1 | K111: 1070,01 | L111: 95.84
D112: гарнир | E112: Рис припущенный | F112: 150 | G112: 3.35 | H112: 8 | I112: 35.01 | J112: 294 | K112: 512 | L112: 13.83
D113: сладкое | E113: Компот из смеси сухофруктов | F113: 200 | G113: 0.46 | H113: 0 | I113: 27.49 | J113: 115.7 | K113: 928 | L113: 14
D114: хлеб | E114: Хлеб пшеничный | F114: 25 | G114: 2.03 | H114: 0 | I114: 12.2 | J114: 60.5 | K114: 894,01 | L114: 6
D115: хлеб | E115: Хлеб ржаной | F115: 25 | G115: 2.13 | H115: 1 | I115: 10.63 | J115: 64.8 | K115: 1147 | L115: 5.38
D116: фрукты
D118: итого | F118: =SUM(F109:F117) -> 690 | G118: =SUM(G109:G117) -> 22.69 | H118: 23 | I118: 106.17 | J118: 811.4 | L118: =SUM(L109:L117) -> 151.08
A119: =A101 -> 1 | B119: =B101 -> 6 | C119: Итого за день: | F119: =F108+F118 -> 1285 | G119: =G108+G118 -> 35.42 | H119: 32 | I119: 210.3 | J119: 1459.5 | L119: =L108+L118 -> 258.99
A120: 2 | B120: 1 | C120: Завтрак | D120: гор.блюдо | E120: Икра кабачковая | F120: 30 | G120: 0.3 | H120: 1 | I120: 1.56 | J120: 16.9 | K120: 77 | L120: 12.91
D121: гор.блюдо | E121: Омлет запеченный или паровой | F121: 200 | G121: 14.6 | H121: 15 | I121: 5.13 | J121: 284.6 | K121: 891 | L121: 60.24
D122: сладкое | E122: Печенье детское | F122: 60 | G122: 4.5 | H122: 5 | I122: 44.6 | J122: 244.18 | K122: 1141 | L122: 13.76
D123: гор.напиток | E123: Чай с лимоном | F123: 200 | G123: 0.09 | H123: 0 | I123: 20.26 | J123: 79.8 | K123: 483 | L123: 15
D124: хлеб | E124: Хлеб пшеничный | F124: 25 | G124: 2.68 | H124: 1 | I124: 10.88 | J124: 68.5 | K124: 897 | L124: 6
D125: хлеб
D126: фрукты
D127: итого | F127: =SUM(F120:F126) -> 515 | G127: =SUM(G120:G126) -> 22.17 | H127: 22 | I127: 82.43 | J127: 693.98 | L127: =SUM(L120:L126) -> 107.91
A128: =A120 -> 2 | B128: =B120 -> 1 | C128: Обед | D128: закуска
D129: 1 блюдо | E129: Суп Крестьянский с крупой, сметаной | F129: 200 | G129: 2.38 | H129: 5 | I129: 13.14 | J129: 109.6 | K129: 1058 | L129: 14.65
D130: 2 блюдо | E130: Фрикадельки "Наполи" | F130: 100 | G130: 12.21 | H130: 15 | I130: 14.72 | J130: 243.2 | K130: 1061,03 | L130: 75.89
D131: гарнир | E131: Макаронные изделия отварные с маслом | F131: 150 | G131: 3.92 | H131: 5 | I131: 35.96 | J131: 220.4 | K131: 516 | L131: 15.27
D132: сладкое | E132: Компот из смеси сухофруктов | F132: 200 | G132: 0.46 | H132: 0 | I132: 27.49 | J132: 115.7 | K132: 928 | L132: 14
D133: хлеб | E133: Хлеб пшеничный | F133: 25 | G133: 2.03 | H133: 0 | I133: 12.2 | J133: 60.5 | K133: 894,01 | L133: 6
D134: хлеб | E134: Хлеб ржаной | F134: 25 | G134: 2.13 | H134: 1 | I134: 10.63 | J134: 64.8 | K134: 1147 | L134: 5.38
D135: фрукты | E135: Фрукт | F135: 100 | G135: 0.4 | H135: 0 | I135: 9.8 | J135: 47 | K135: 976,03 | L135: 19.89
D137: итого | F137: =SUM(F128:F136) -> 800 | G137: =SUM(G128:G136) -> 23.53 | H137: 26 | I137: 123.94 | J137: 861.2 | L137: =SUM(L128:L136) -> 151.08
A138: =A120 -> 2 | B138: =B120 -> 1 | C138: Итого за день: | F138: =F127+F137 -> 1315 | G138: =G127+G137 -> 45.7 | H138: =H127+H137 -> 48 | I138: =I127+I137 -> 206.37 | J138: =J127+J137 -> 1555.18 | L138: 258.99
A139: 2 | B139: 2 | C139: Завтрак | D139: гор.блюдо | E139: Каша рисовая молочная вязкая с маслом сливочным | F139: 200 | G139: 5.1 | H139: 6 | I139: 24.87 | J139: 205.6 | K139: 874 | L139: 52.22
D140: гор.напиток | E140: Чай ягодный | F140: 200 | G140: 0.1 | H140: 0 | I140: 12.97 | J140: 59.9 | K140: 971 | L140: 10
D141: сладкое | E141: Булочка с маковой начинкой | F141: 100 | G141: 6.43 | H141: 2 | I141: 57.27 | J141: 272.7 | K141: 1462 | L141: 25.93
D142: хлеб | E142: Хлеб пшеничный | F142: 25 | G142: 2.68 | H142: 1 | I142: 10.88 | J142: 68.5 | K142: 897 | L142: 6
D143: хлеб
D144: фрукы | E144: Фрукт | F144: 100 | G144: 0.4 | H144: 0 | I144: 9.8 | J144: 37 | K144: 976,03 | L144: 13.76
D146: итого | F146: =SUM(F139:F145) -> 625 | G146: =SUM(G139:G145) -> 14.71 | H146: 9 | I146: 115.79 | J146: 643.7 | L146: =SUM(L139:L145) -> 107.91
A147: =A139 -> 2 | B147: =B139 -> 2 | C147: Обед | D147: закуска
D148: 1 блюдо | E148: Рассольник домашний со сметаной | F148: 200 | G148: 1.91 | H148: 5 | I148: 10.79 | J148: 92.4 | K148: 1175 | L148: 21.3
D149: 2 блюдо | E149: Жаркое по-домашнему | F149: 220 | G149: 14.55 | H149: 17 | I149: 25.02 | J149: 399.2 | K149: 893,01 | L149: 90.64
D150: гарнир
D151: сладкое | E151: Напиток Ягодка | F151: 200 | G151: 0.12 | H151: 0 | I151: 14.85 | J151: 61.1 | K151: 930 | L151: 14
D152: хлеб | E152: Хлеб пшеничный | F152: 25 | G152: 2.03 | H152: 0 | I152: 12.2 | J152: 60.5 | K152: 894,01 | L152: 6
D153: хлеб | E153: Хлеб ржаной | F153: 25 | G153: 2.13 | H153: 1 | I153: 10.63 | J153: 64.8 | K153: 1147 | L153: 5.38
D154: сладкое | E154: Манник на кефире | F154: 60 | G154: 4.01 | H154: 5 | I154: 37 | J154: 244.18 | K154: 1182,03 | L154: 13.76
D156: итого | F156: =SUM(F147:F155) -> 730 | G156: =SUM(G147:G155) -> 24.75 | H156: 28 | I156: 110.49 | J156: 922.18 | L156: =SUM(L147:L155) -> 151.08
A157: =A139 -> 2 | B157: =B139 -> 2 | C157: Итого за день: | F157: =F146+F156 -> 1355 | G157: =G146+G156 -> 39.46 | H157: =H146+H156 -> 37 | I157: =I146+I156 -> 226.28 | J157: =J146+J156 -> 1565.88 | L157: 258.99
A158: 2 | B158: 3 | C158: Завтрак | D158: гор.блюдо | E158: Пудинг творожно-манный | F158: 160 | G158: 23.97 | H158: 15 | I158: 25.54 | J158: 379.2 | K158: 1073 | L158: 69.62
D159: гор.блюдо | E159: Молоко сгущенное | F159: 30 | G159: 2.37 | H159: 3 | I159: 16.32 | J159: 96.3 | K159: 902 | L159: 5
D160: гор.напиток | E160: Какао с молоком | F160: 200 | G160: 3.87 | H160: 4 | I160: 12.3 | J160: 89.7 | K160: 919 | L160: 15
D161: сладкое | E161: Булочка российская | F161: 100 | G161: 7.54 | H161: 9 | I161: 61.42 | J161: 248.1 | K161: 775 | L161: 6.91
D162: хлеб | E162: Хлеб пшеничный | F162: 25 | G162: 2.68 | H162: 1 | I162: 10.88 | J162: 68.5 | K162: 897 | L162: 6
D163: хлеб | E163: Хлеб ржаной | F163: 25 | G163: 2.13 | H163: 1 | I163: 12.13 | J163: 64.8 | K163: 1148 | L163: 5.38
D165: итого | F165: =SUM(F158:F164) -> 540 | G165: =SUM(G158:G164) -> 42.56 | H165: 33 | I165: 138.59 | J165: 946.6 | L165: =SUM(L158:L164) -> 107.91
A166: =A158 -> 2 | B166: =B158 -> 3 | C166: Обед | D166: закуска
D167: 1 блюдо | E167: Борщ с капустой картофелем и сметаной | F167: 200 | G167: 3.03 | H167: 8 | I167: 13.87 | J167: 118 | K167: 1021 | L167: 20.9
D168: 2 блюдо | E168: Птица запеченная | F168: 90 | G168: 11.29 | H168: 6 | I168: 1.88 | J168: 161.8 | K168: 1237 | L168: 67.18
D169: гарнир | E169: Каша гречневая рассыпчатая | F169: 150 | G169: 7.55 | H169: 6 | I169: 39.35 | J169: 240.8 | K169: 998 | L169: 17.73
D170: сладкое | E170: Компот из кураги | F170: 200 | G170: 0.78 | H170: 0 | I170: 22.62 | J170: 101 | K170: 932 | L170: 14
D171: хлеб | E171: Хлеб пшеничный | F171: 25 | G171: 2.03 | H171: 0 | I171: 12.2 | J171: 60.5 | K171: 894,01 | L171: 6
D172: хлеб | E172: Хлеб ржаной | F172: 25 | G172: 2.13 | H172: 1 | I172: 10.63 | J172: 64.8 | K172: 1147 | L172: 5.38
D173: фрукты | E173: Фрукт | F173: 100 | G173: 0.4 | H173: 0 | I173: 9.8 | J173: 47 | K173: 976,03 | L173: 19.89
D175: итого | F175: =SUM(F166:F174) -> 790 | G175: =SUM(G166:G174) -> 27.21 | H175: 21 | I175: 110.35 | J175: 793.9 | L175: =SUM(L166:L174) -> 151.08
A176: =A158 -> 2 | B176: =B158 -> 3 | C176: Итого за день: | F176: =F165+F175 -> 1330 | G176: =G165+G175 -> 69.77 | H176: =H165+H175 -> 54 | I176: =I165+I175 -> 248.94 | J176: =J165+J175 -> 1740.5 | L176: 258.99
A177: 2 | B177: 4 | C177: Завтрак | D177: гор.блюдо | E177: Тефтели мясные с луком с соусом красным | F177: 90 | G177: 10.81 | H177: 15 | I177: 13.56 | J177: 231.9 | K177: 907,01 | L177: 47.52
D178: гор.блюдо | E178: Макаронные изделия отварные с маслом | F178: 150 | G178: 6.47 | H178: 3 | I178: 38.71 | J178: 212.7 | K178: 516 | L178: 25.25
D179: гор.напиток | E179: Чай ягодный | F179: 200 | G179: 0.1 | H179: 0 | I179: 12.97 | J179: 59.9 | K179: 971 | L179: 10
D180: хлеб | E180: Хлеб ржаной | F180: 25 | G180: 2.13 | H180: 1 | I180: 10.63 | J180: 64.8 | K180: 1147 | L180: 5.38
D181: хлеб | E181: Хлеб пшеничный | F181: 25 | G181: 2.03 | H181: 0 | I181: 12.2 | J181: 60.5 | K181: 894,01 | L181: 6
D182: фрукты | E182: Фрукт | F182: 100 | G182: 0.4 | H182: 0 | I182: 9.8 | J182: 47 | K182: 976,03 | L182: 13.76
D184: итого | F184: =SUM(F177:F183) -> 590 | G184: =SUM(G177:G183) -> 21.94 | H184: 19 | I184: 97.87 | J184: 676.8 | L184: =SUM(L177:L183) -> 107.91
A185: =A177 -> 2 | B185: =B177 -> 4 | C185: Обед | D185: закуска
D186: 1 блюдо | E186: Суп картофельный с бобовыми | F186: 200 | G186: 4.7 | H186: 4 | I186: 17.18 | J186: 125.3 | K186: 139 | L186: 18.82
D187: 1 блюдо | E187: Гренки из пшеничного хлеба | F187: 10 | G187: 1.3 | H187: 0 | I187: 7.81 | J187: 40 | K187: 943 | L187: 2.48
D188: 2 блюдо | E188: Чикенбол с молочным соусом | F188: 100 | G188: 12.2 | H188: 12 | I188: 10.07 | J188: 223.4 | K188: 1633,99 | L188: 90.57
D189: гарнир | E189: Рис припущенный | F189: 150 | G189: 3.35 | H189: 5 | I189: 35.01 | J189: 220.5 | K189: 512 | L189: 13.83
D190: сладкое | E190: Напиток из плодов шиповника | F190: 200 | G190: 0.68 | H190: 0 | I190: 25.63 | J190: 120.6 | K190: 705 | L190: 14
D191: хлеб | E191: Хлеб пшеничный | F191: 25 | G191: 2.03 | H191: 0 | I191: 12.2 | J191: 60.5 | K191: 894,01 | L191: 6
D192: хлеб | E192: Хлеб ржаной | F192: 25 | G192: 2.13 | H192: 1 | I192: 10.63 | J192: 64.8 | K192: 1147 | L192: 5.38
D194: итого | F194: =SUM(F185:F193) -> 710 | G194: =SUM(G185:G193) -> 26.39 | H194: 22 | I194: 118.53 | J194: 855.1 | L194: =SUM(L185:L193) -> 151.08
A195: =A177 -> 2 | B195: =B177 -> 4 | C195: Итого за день: | F195: =F184+F194 -> 1300 | G195: =G184+G194 -> 48.33 | H195: =H184+H194 -> 41 | I195: =I184+I194 -> 216.4 | J195: =J184+J194 -> 1531.9 | L195: 258.99
A196: 2 | B196: 5 | C196: Завтрак | D196: хлеб | E196: Бутерброд с маслом сливочным | F196: 40 | G196: 2.5 | H196: 8 | I196: 16.55 | J196: 131.2 | K196: 808 | L196: 13.76
D197: гор.блюдо | E197: Каша ячневая молочная вязкая с маслом сливочным | F197: 200 | G197: 4.48 | H197: 8 | I197: 25.08 | J197: 198.4 | K197: 842 | L197: 56.85
D198: гор.напиток | E198: Чай с сахаром | F198: 200 | G198: 0 | H198: 0 | I198: 14.97 | J198: 59.9 | K198: 828 | L198: 10
D199: сладкое | E199: Зефир | F199: 54 | G199: 0.43 | H199: 0 | I199: 43.09 | J199: 176 | K199: 1466 | L199: 21.3
D200: хлеб | E200: Хлеб пшеничный | F200: 25 | G200: 2.68 | H200: 1 | I200: 10.88 | J200: 68.5 | K200: 897 | L200: 6
D201: хлеб
D202: фрукты
D203: итого | F203: =SUM(F196:F202) -> 519 | G203: =SUM(G196:G202) -> 10.09 | H203: 17 | I203: 110.57 | J203: 634 | L203: =SUM(L196:L202) -> 107.91
A204: =A196 -> 2 | B204: =B196 -> 5 | C204: Обед | D204: закуска
D205: 1 блюдо | E205: Суп-лапша на курином бульоне | F205: 200 | G205: 4.44 | H205: 4 | I205: 12.6 | J205: 126.4 | K205: 1015 | L205: 17.8
D206: 2 блюдо | E206: Гуляш из мяса свинины | F206: 100 | G206: 13.35 | H206: 15 | I206: 8.87 | J206: 275 | K206: 437,01 | L206: 68.91
D207: гарнир | E207: Пюре картофельное | F207: 150 | G207: 3.31 | H207: 6 | I207: 22.17 | J207: 155 | K207: 995 | L207: 25.23
D208: сладкое | E208: Компот из ягод | F208: 200 | G208: 0.15 | H208: 0 | I208: 19.06 | J208: 78.4 | K208: 917,02 | L208: 14
D209: хлеб | E209: Хлеб пшеничный | F209: 25 | G209: 2.03 | H209: 0 | I209: 12.2 | J209: 60.5 | K209: 894,01 | L209: 6
D210: хлеб | E210: Хлеб ржаной | F210: 25 | G210: 2.13 | H210: 1 | I210: 10.63 | J210: 64.8 | K210: 1147 | L210: 5.38
D211: фрукты | E211: Фрукт | F211: 100 | G211: 0.4 | H211: 0 | I211: 9.8 | J211: 47 | K211: 976,03 | L211: 13.76
D213: итого | F213: =SUM(F204:F212) -> 800 | G213: =SUM(G204:G212) -> 25.81 | H213: 26 | I213: 95.33 | J213: 807.1 | L213: =SUM(L204:L212) -> 151.08
A214: =A196 -> 2 | B214: =B196 -> 5 | C214: Итого за день: | F214: =F203+F213 -> 1319 | G214: =G203+G213 -> 35.9 | H214: 43 | I214: 205.9 | J214: 1441.1 | L214: =L203+L213 -> 258.99
A215: 2 | B215: 6 | C215: Завтрак | D215: закуска
D216: гор.блюдо | E216: Каша пшенная молочная вязкая с маслом сливочным | F216: 200 | G216: 13.12 | H216: 10 | I216: 30.4 | J216: 259.1 | K216: 302 | L216: 44.17
D217: гор.напиток | E217: Чай с лимоном | F217: 200 | G217: 0.06 | H217: 0 | I217: 15.16 | J217: 59.9 | K217: 686 | L217: 15
D218: сладкое | E218: Слойка со сгущенкой | F218: 70 | G218: 5.14 | H218: 9 | I218: 42.1 | J218: 275.1 | K218: 942,07 | L218: 28.98
D219: хлеб | E219: Хлеб пшеничный | F219: 25 | G219: 2.03 | H219: 0 | I219: 12.2 | J219: 60.5 | K219: 894,01 | L219: 6
D220: хлеб
... 14 more rows
